[Event "Titled Tuesday Blitz November 01 Early 2022"]
[White "Arabidze, Meri"]
[Black "D`Arruda, Ricardo D."]
[WhiteFideId "13604040"]
[BlackFideId "100692"]
[WhiteElo "2403"]
[BlackElo "2486"]
[Result "1-0"]
[Round "10"]
[TimeControl "180+1"]
[Date "2022.11.02"]
[WhiteClock "0:00:12"]
[BlackClock "0:00:06"]

1. Nf3 {[%clk 0:02:56]}  d5 {[%clk 0:02:43]} 2. d4 {[%clk 0:02:56]}  Nf6 {[%clk 0:02:41]} 3. c4 {[%clk 0:02:56]}  c6 {[%clk 0:02:39]} 4. e3 {[%clk 0:02:56]}  g6 {[%clk 0:02:39]} 5. Nc3 {[%clk 0:02:56]}  Bg7 {[%clk 0:02:39]} 6. Be2 {[%clk 0:02:56]}  O-O {[%clk 0:02:39]} 7. O-O {[%clk 0:02:56]}  Ne4 {[%clk 0:02:37]} 8. Qb3 {[%clk 0:02:51]}  Qb6 {[%clk 0:02:29]} 9. cxd5 {[%clk 0:02:45]}  Qxb3 {[%clk 0:02:26]} 10. axb3 {[%clk 0:02:46]}  Nxc3 {[%clk 0:02:25]} 11. bxc3 {[%clk 0:02:47]}  cxd5 {[%clk 0:02:25]} 12. Ba3 {[%clk 0:02:45]}  Re8 {[%clk 0:02:23]} 13. c4 {[%clk 0:02:45]}  e6 {[%clk 0:02:16]} 14. cxd5 {[%clk 0:02:40]}  exd5 {[%clk 0:02:09]} 15. Rfc1 {[%clk 0:02:40]}  Nc6 {[%clk 0:02:09]} 16. Bb5 {[%clk 0:02:33]}  Bd7 {[%clk 0:02:09]} 17. Bd6 {[%clk 0:02:28]}  a6 {[%clk 0:02:07]} 18. Bf1 {[%clk 0:02:01]}  Rac8 {[%clk 0:02:05]} 19. h3 {[%clk 0:01:53]}  f6 {[%clk 0:02:01]} 20. Bd3 {[%clk 0:01:43]}  Kf7 {[%clk 0:01:58]} 21. Bc5 {[%clk 0:01:29]}  Be6 {[%clk 0:01:51]} 22. b4 {[%clk 0:01:25]}  Bd7 {[%clk 0:01:45]} 23. b5 {[%clk 0:01:23]}  axb5 {[%clk 0:01:44]} 24. Bxb5 {[%clk 0:01:24]}  Ra8 {[%clk 0:01:44]} 25. Rab1 {[%clk 0:01:18]}  Ra2 {[%clk 0:01:31]} 26. Bd3 {[%clk 0:01:13]}  Bc8 {[%clk 0:01:19]} 27. Bc2 {[%clk 0:01:08]}  Rd8 {[%clk 0:01:01]} 28. Bb3 {[%clk 0:01:05]}  Ra8 {[%clk 0:01:01]} 29. e4 {[%clk 0:01:01]}  Be6 {[%clk 0:00:56]} 30. Bxd5 {[%clk 0:00:57]}  Bxd5 {[%clk 0:00:57]} 31. exd5 {[%clk 0:00:56]}  Rxd5 {[%clk 0:00:57]} 32. Rxb7+ {[%clk 0:00:56]}  Kg8 {[%clk 0:00:57]} 33. Bb6 {[%clk 0:00:45]}  Rd6 {[%clk 0:00:30]} 34. d5 {[%clk 0:00:33]}  Nd8 {[%clk 0:00:28]} 35. Bxd8 {[%clk 0:00:31]}  Raxd8 {[%clk 0:00:28]} 36. Rcc7 {[%clk 0:00:31]}  Bf8 {[%clk 0:00:28]} 37. Rxh7 {[%clk 0:00:30]}  Rxd5 {[%clk 0:00:28]} 38. g4 {[%clk 0:00:25]}  g5 {[%clk 0:00:19]} 39. Rhf7 {[%clk 0:00:23]}  R8d6 {[%clk 0:00:17]} 40. Kg2 {[%clk 0:00:22]}  Rd3 {[%clk 0:00:16]} 41. h4 {[%clk 0:00:20]}  gxh4 {[%clk 0:00:16]} 42. Nxh4 {[%clk 0:00:21]}  R3d4 {[%clk 0:00:13]} 43. Kg3 {[%clk 0:00:19]}  Rd3+ {[%clk 0:00:12]} 44. f3 {[%clk 0:00:20]}  Re6 {[%clk 0:00:11]} 45. Nf5 {[%clk 0:00:14]}  Bd6+ {[%clk 0:00:09]} 46. Nxd6 {[%clk 0:00:12]}  Rexd6 {[%clk 0:00:09]} 47. Rg7+ {[%clk 0:00:11]}  Kh8 {[%clk 0:00:08]} 48. Rh7+ {[%clk 0:00:11]}  Kg8 {[%clk 0:00:08]} 49. Rbg7+ {[%clk 0:00:11]}  Kf8 {[%clk 0:00:08]} 50. Ra7 {[%clk 0:00:12]}  Rd8 {[%clk 0:00:06]} 51. Rh8# {[%clk 0:00:12]} 1-0


[Site "https://www.chess.com"]

[Event "Titled Tuesday Blitz November 01 Early 2022"]
[White "Barria Zuniga, Daniel"]
[Black "Weetik, Vjacheslav"]
[WhiteFideId "3400816"]
[BlackFideId "4153472"]
[WhiteElo "2414"]
[BlackElo "2469"]
[Result "0-1"]
[Round "10"]
[TimeControl "180+1"]
[Date "2022.11.02"]
[WhiteClock "0:00:55"]
[BlackClock "0:00:23"]

1. d4 {[%clk 0:03:00]}  Nf6 {[%clk 0:02:59]} 2. c4 {[%clk 0:02:59]}  g6 {[%clk 0:02:59]} 3. Nc3 {[%clk 0:02:57]}  Bg7 {[%clk 0:02:59]} 4. e4 {[%clk 0:02:57]}  d6 {[%clk 0:02:59]} 5. Be2 {[%clk 0:02:57]}  O-O {[%clk 0:02:59]} 6. Nf3 {[%clk 0:02:58]}  e5 {[%clk 0:02:57]} 7. d5 {[%clk 0:02:57]}  a5 {[%clk 0:02:57]} 8. Bg5 {[%clk 0:02:57]}  h6 {[%clk 0:02:56]} 9. Bh4 {[%clk 0:02:57]}  Na6 {[%clk 0:02:53]} 10. Nd2 {[%clk 0:02:57]}  Qe8 {[%clk 0:02:50]} 11. O-O {[%clk 0:02:57]}  Nh7 {[%clk 0:02:49]} 12. a3 {[%clk 0:02:55]}  Bd7 {[%clk 0:02:49]} 13. b3 {[%clk 0:02:53]}  h5 {[%clk 0:02:48]} 14. f3 {[%clk 0:02:51]}  Bh6 {[%clk 0:02:48]} 15. Rb1 {[%clk 0:02:51]}  Be3+ {[%clk 0:02:47]} 16. Kh1 {[%clk 0:02:51]}  Nc5 {[%clk 0:02:34]} 17. Qc2 {[%clk 0:02:49]}  f5 {[%clk 0:02:31]} 18. b4 {[%clk 0:02:47]}  axb4 {[%clk 0:02:29]} 19. axb4 {[%clk 0:02:48]}  Na4 {[%clk 0:02:28]} 20. Nb5 {[%clk 0:02:48]}  Bxb5 {[%clk 0:01:50]} 21. cxb5 {[%clk 0:02:46]}  Bd4 {[%clk 0:01:45]} 22. Rb3 {[%clk 0:02:28]}  f4 {[%clk 0:01:32]} 23. Qxc7 {[%clk 0:02:19]}  g5 {[%clk 0:01:32]} 24. Be1 {[%clk 0:02:09]}  Rc8 {[%clk 0:01:12]} 25. Qxb7 {[%clk 0:02:00]}  Rf7 {[%clk 0:01:10]} 26. Qa6 {[%clk 0:01:57]}  Nb6 {[%clk 0:00:56]} 27. Qa2 {[%clk 0:01:47]}  g4 {[%clk 0:00:53]} 28. fxg4 {[%clk 0:01:46]}  Ng5 {[%clk 0:00:51]} 29. gxh5 {[%clk 0:01:44]}  Rg7 {[%clk 0:00:41]} 30. Bh4 {[%clk 0:01:36]}  Be3 {[%clk 0:00:37]} 31. h6 {[%clk 0:01:30]}  Rg6 {[%clk 0:00:36]} 32. Bh5 {[%clk 0:01:30]}  Bxd2 {[%clk 0:00:33]} 33. Qxd2 {[%clk 0:01:23]}  Nc4 {[%clk 0:00:30]} 34. Qe2 {[%clk 0:01:12]}  Ne3 {[%clk 0:00:29]} 35. Bxg5 {[%clk 0:01:11]}  Nxf1 {[%clk 0:00:26]} 36. Qxf1 {[%clk 0:01:05]}  Qxb5 {[%clk 0:00:27]} 37. Be2 {[%clk 0:00:55]}  Qxe2 {[%clk 0:00:23]} 0-1


[Site "https://www.chess.com"]

[Event "Titled Tuesday Blitz November 01 Early 2022"]
[White "Bashirli, Saadat"]
[Black "Petrovic, Aleksa"]
[WhiteFideId "13429990"]
[BlackFideId "967629"]
[WhiteElo "1408"]
[BlackElo "2242"]
[Result "0-1"]
[Round "10"]
[TimeControl "180+1"]
[Date "2022.11.02"]
[WhiteClock "0:00:09"]
[BlackClock "0:02:00"]

1. d4 {[%clk 0:01:56]}  Nf6 {[%clk 0:02:57]} 2. c4 {[%clk 0:01:55]}  e6 {[%clk 0:02:57]} 3. Nc3 {[%clk 0:01:56]}  Bb4 {[%clk 0:02:57]} 4. e3 {[%clk 0:01:56]}  O-O {[%clk 0:02:55]} 5. Bd3 {[%clk 0:01:56]}  d5 {[%clk 0:02:56]} 6. a3 {[%clk 0:01:56]}  Bxc3+ {[%clk 0:02:54]} 7. bxc3 {[%clk 0:01:57]}  b6 {[%clk 0:02:53]} 8. Ne2 {[%clk 0:01:54]}  Ba6 {[%clk 0:02:52]} 9. cxd5 {[%clk 0:01:53]}  Qxd5 {[%clk 0:02:47]} 10. O-O {[%clk 0:01:50]}  Bxd3 {[%clk 0:02:36]} 11. Qxd3 {[%clk 0:01:49]}  Nbd7 {[%clk 0:02:30]} 12. f3 {[%clk 0:01:48]}  Nc5 {[%clk 0:02:26]} 13. Qd1 {[%clk 0:01:46]}  Nb3 {[%clk 0:02:23]} 14. Rb1 {[%clk 0:01:44]}  Nxc1 {[%clk 0:02:22]} 15. Qxc1 {[%clk 0:01:45]}  Qc4 {[%clk 0:02:20]} 16. Qc2 {[%clk 0:01:41]}  c5 {[%clk 0:02:20]} 17. Rfd1 {[%clk 0:01:30]}  Nd5 {[%clk 0:02:11]} 18. Kf2 {[%clk 0:00:19]}  cxd4 {[%clk 0:02:07]} 19. Rxd4 {[%clk 0:00:19]}  Qc5 {[%clk 0:02:05]} 20. Qb2 {[%clk 0:00:17]}  Rac8 {[%clk 0:02:03]} 21. Rc1 {[%clk 0:00:16]}  Nxe3 {[%clk 0:02:00]} 22. Kxe3 {[%clk 0:00:12]}  e5 {[%clk 0:02:00]} 23. Rd1 {[%clk 0:00:11]}  exd4+ {[%clk 0:02:00]} 24. cxd4 {[%clk 0:00:11]}  Rfe8+ {[%clk 0:02:00]} 25. Kf2 {[%clk 0:00:11]}  Qc2 {[%clk 0:02:00]} 26. Qxc2 {[%clk 0:00:09]}  Rxc2 {[%clk 0:02:01]} 27. Re1 {[%clk 0:00:09]}  Rd2 {[%clk 0:02:01]} 28. Kf1 {[%clk 0:00:07]}  f6 {[%clk 0:02:01]} 29. g3 {[%clk 0:00:05]}  Kf7 {[%clk 0:02:01]} 30. f4 {[%clk 0:00:04]}  f5 {[%clk 0:02:01]} 31. Kf2 {[%clk 0:00:05]}  g6 {[%clk 0:01:59]} 32. Kf1 {[%clk 0:00:05]}  h5 {[%clk 0:01:58]} 33. Kf2 {[%clk 0:00:06]}  b5 {[%clk 0:01:58]} 34. Kf1 {[%clk 0:00:06]}  a5 {[%clk 0:01:59]} 35. Kf2 {[%clk 0:00:06]}  b4 {[%clk 0:01:59]} 36. axb4 {[%clk 0:00:07]}  axb4 {[%clk 0:02:00]} 37. Kf1 {[%clk 0:00:08]}  b3 {[%clk 0:02:01]} 38. Kf2 {[%clk 0:00:08]}  Rexe2+ {[%clk 0:02:00]} 39. Kf1 {[%clk 0:00:09]} 0-1


[Site "https://www.chess.com"]

[Event "Titled Tuesday Blitz November 01 Early 2022"]
[White "Begunov, Konstantin"]
[Black "Dehtiarov, Roman"]
[WhiteFideId "4118510"]
[BlackFideId "14186640"]
[WhiteElo "2225"]
[BlackElo "2200"]
[Result "0-1"]
[Round "10"]
[TimeControl "180+1"]
[Date "2022.11.02"]
[WhiteClock "0:00:03"]
[BlackClock "0:00:12"]

1. d4 {[%clk 0:02:58]}  Nf6 {[%clk 0:02:56]} 2. c4 {[%clk 0:02:58]}  e6 {[%clk 0:02:55]} 3. Nf3 {[%clk 0:02:58]}  b6 {[%clk 0:02:55]} 4. g3 {[%clk 0:02:58]}  Ba6 {[%clk 0:02:55]} 5. Qa4 {[%clk 0:02:58]}  Bb7 {[%clk 0:02:54]} 6. Bg2 {[%clk 0:02:58]}  c5 {[%clk 0:02:53]} 7. dxc5 {[%clk 0:02:58]}  bxc5 {[%clk 0:02:53]} 8. Nc3 {[%clk 0:02:58]}  Be7 {[%clk 0:02:52]} 9. O-O {[%clk 0:02:59]}  O-O {[%clk 0:02:52]} 10. Rd1 {[%clk 0:02:59]}  d6 {[%clk 0:02:52]} 11. Bf4 {[%clk 0:02:56]}  Qb6 {[%clk 0:02:51]} 12. Rab1 {[%clk 0:02:56]}  a5 {[%clk 0:02:45]} 13. Rd2 {[%clk 0:02:31]}  Bc6 {[%clk 0:02:43]} 14. Qc2 {[%clk 0:02:27]}  e5 {[%clk 0:02:43]} 15. Bg5 {[%clk 0:02:27]}  Nbd7 {[%clk 0:02:43]} 16. Nh4 {[%clk 0:02:18]}  Bxg2 {[%clk 0:02:37]} 17. Nf5 {[%clk 0:02:02]}  Rfe8 {[%clk 0:02:25]} 18. Kxg2 {[%clk 0:01:57]}  Bf8 {[%clk 0:02:25]} 19. Rbd1 {[%clk 0:01:54]}  Re6 {[%clk 0:02:17]} 20. Nb5 {[%clk 0:01:38]}  Qc6+ {[%clk 0:01:52]} 21. f3 {[%clk 0:01:37]}  e4 {[%clk 0:01:31]} 22. Nfxd6 {[%clk 0:01:31]}  exf3+ {[%clk 0:01:30]} 23. exf3 {[%clk 0:01:32]}  Ne5 {[%clk 0:01:22]} 24. Qc3 {[%clk 0:01:19]}  Rd8 {[%clk 0:00:48]} 25. Nf5 {[%clk 0:01:17]}  Rxd2+ {[%clk 0:00:44]} 26. Rxd2 {[%clk 0:01:17]}  Ne4 {[%clk 0:00:33]} 27. Qb3 {[%clk 0:00:16]}  Nxd2 {[%clk 0:00:29]} 28. Bxd2 {[%clk 0:00:17]}  Nxf3 {[%clk 0:00:28]} 29. Be3 {[%clk 0:00:05]}  Nh4+ {[%clk 0:00:17]} 30. Kf1 {[%clk 0:00:05]}  Qf3+ {[%clk 0:00:13]} 31. Ke1 {[%clk 0:00:05]}  Nxf5 {[%clk 0:00:13]} 32. Nc7 {[%clk 0:00:03]}  Rxe3+ {[%clk 0:00:12]} 0-1


[Site "https://www.chess.com"]

[Event "Titled Tuesday Blitz November 01 Early 2022"]
[White "Besedes, Danilo"]
[Black "Garayev, Kanan"]
[WhiteFideId "946796"]
[BlackFideId "13406671"]
[WhiteElo "2352"]
[BlackElo "2244"]
[Result "1-0"]
[Round "10"]
[TimeControl "180+1"]
[Date "2022.11.02"]
[WhiteClock "0:00:14"]
[BlackClock "0:00:22"]

1. e4 {[%clk 0:03:00]}  c5 {[%clk 0:02:57]} 2. d3 {[%clk 0:03:01]}  Nc6 {[%clk 0:02:56]} 3. Nf3 {[%clk 0:02:57]}  Nf6 {[%clk 0:02:54]} 4. Nc3 {[%clk 0:02:58]}  d5 {[%clk 0:02:54]} 5. Bg5 {[%clk 0:02:56]}  d4 {[%clk 0:02:51]} 6. Ne2 {[%clk 0:02:54]}  g6 {[%clk 0:02:48]} 7. h4 {[%clk 0:02:44]}  h6 {[%clk 0:02:46]} 8. Bd2 {[%clk 0:02:43]}  Bg7 {[%clk 0:02:45]} 9. Ng3 {[%clk 0:02:42]}  Bg4 {[%clk 0:02:42]} 10. Be2 {[%clk 0:02:42]}  Qd7 {[%clk 0:02:42]} 11. h5 {[%clk 0:02:17]}  Nxh5 {[%clk 0:02:38]} 12. Nxh5 {[%clk 0:02:16]}  Bxh5 {[%clk 0:02:33]} 13. Rxh5 {[%clk 0:02:16]}  gxh5 {[%clk 0:02:32]} 14. a3 {[%clk 0:02:10]}  O-O-O {[%clk 0:02:27]} 15. b4 {[%clk 0:02:10]}  c4 {[%clk 0:02:28]} 16. dxc4 {[%clk 0:02:06]}  d3 {[%clk 0:02:28]} 17. Bxd3 {[%clk 0:02:05]}  Bxa1 {[%clk 0:02:28]} 18. Qxa1 {[%clk 0:02:01]}  Qg4 {[%clk 0:02:25]} 19. b5 {[%clk 0:01:51]}  Qxg2 {[%clk 0:02:17]} 20. Ke2 {[%clk 0:01:47]}  Nb8 {[%clk 0:02:06]} 21. Qe5 {[%clk 0:01:46]}  Nd7 {[%clk 0:02:03]} 22. Qd4 {[%clk 0:01:31]}  Nb6 {[%clk 0:01:42]} 23. Qc5+ {[%clk 0:01:17]}  Kb8 {[%clk 0:01:43]} 24. Qe5+ {[%clk 0:01:14]}  Ka8 {[%clk 0:01:42]} 25. c5 {[%clk 0:01:13]}  Nd7 {[%clk 0:01:41]} 26. Qc7 {[%clk 0:01:10]}  Qg4 {[%clk 0:01:24]} 27. c6 {[%clk 0:01:09]}  Nc5 {[%clk 0:01:23]} 28. Be3 {[%clk 0:01:03]}  Qc8 {[%clk 0:01:15]} 29. Qxc8+ {[%clk 0:01:02]}  Rxc8 {[%clk 0:01:16]} 30. Bxc5 {[%clk 0:01:02]}  bxc6 {[%clk 0:01:16]} 31. bxc6 {[%clk 0:00:59]}  Rxc6 {[%clk 0:01:17]} 32. Bxe7 {[%clk 0:00:53]}  Re6 {[%clk 0:01:14]} 33. Bc5 {[%clk 0:00:45]}  f5 {[%clk 0:01:02]} 34. e5 {[%clk 0:00:45]}  h4 {[%clk 0:00:59]} 35. Bxf5 {[%clk 0:00:44]}  Ree8 {[%clk 0:00:51]} 36. Be4+ {[%clk 0:00:42]}  Kb8 {[%clk 0:00:52]} 37. Bd6+ {[%clk 0:00:39]}  Kc8 {[%clk 0:00:52]} 38. Nxh4 {[%clk 0:00:40]}  Kd7 {[%clk 0:00:53]} 39. c4 {[%clk 0:00:35]}  Rhg8 {[%clk 0:00:52]} 40. c5 {[%clk 0:00:32]}  Ke6 {[%clk 0:00:49]} 41. c6 {[%clk 0:00:30]}  Rd8 {[%clk 0:00:42]} 42. Nf5 {[%clk 0:00:23]}  Rg4 {[%clk 0:00:40]} 43. Nd4+ {[%clk 0:00:22]}  Kf7 {[%clk 0:00:39]} 44. Bd5+ {[%clk 0:00:21]}  Kg6 {[%clk 0:00:39]} 45. Ke3 {[%clk 0:00:20]}  Rg1 {[%clk 0:00:34]} 46. c7 {[%clk 0:00:20]}  Rc8 {[%clk 0:00:35]} 47. Be6 {[%clk 0:00:20]}  Rxc7 {[%clk 0:00:34]} 48. Bxc7 {[%clk 0:00:21]}  h5 {[%clk 0:00:33]} 49. f4 {[%clk 0:00:21]}  h4 {[%clk 0:00:31]} 50. f5+ {[%clk 0:00:21]}  Kh5 {[%clk 0:00:31]} 51. f6 {[%clk 0:00:21]}  Re1+ {[%clk 0:00:30]} 52. Kf2 {[%clk 0:00:21]}  Re4 {[%clk 0:00:29]} 53. Nf3 {[%clk 0:00:20]}  Rf4 {[%clk 0:00:28]} 54. Bh3 {[%clk 0:00:20]}  Kg6 {[%clk 0:00:27]} 55. Ke3 {[%clk 0:00:19]}  Ra4 {[%clk 0:00:28]} 56. Bd6 {[%clk 0:00:18]}  a5 {[%clk 0:00:28]} 57. Bd7 {[%clk 0:00:14]}  Rc4 {[%clk 0:00:27]} 58. Be8+ {[%clk 0:00:14]}  Kf5 {[%clk 0:00:23]} 59. f7 {[%clk 0:00:15]}  Kg4 {[%clk 0:00:22]} 60. f8=Q {[%clk 0:00:14]}  Kh3 {[%clk 0:00:22]} 61. Bd7+ {[%clk 0:00:14]}  Kg2 {[%clk 0:00:22]} 62. Qf5 {[%clk 0:00:14]} 1-0


[Site "https://www.chess.com"]

[Event "Titled Tuesday Blitz November 01 Early 2022"]
[White "Blokhin, Sofia"]
[Black "Smietanska, Wiktoria"]
[WhiteFideId "4508190"]
[BlackFideId "21869359"]
[WhiteElo "2005"]
[BlackElo "1854"]
[Result "1-0"]
[Round "10"]
[TimeControl "180+1"]
[Date "2022.11.02"]
[WhiteClock "0:00:23"]
[BlackClock "0:00:01"]

1. e4 {[%clk 0:03:00]}  c5 {[%clk 0:02:56]} 2. Nf3 {[%clk 0:03:00]}  d6 {[%clk 0:02:56]} 3. d4 {[%clk 0:03:00]}  cxd4 {[%clk 0:02:57]} 4. Nxd4 {[%clk 0:03:01]}  Nf6 {[%clk 0:02:58]} 5. Nc3 {[%clk 0:03:01]}  a6 {[%clk 0:02:58]} 6. Be3 {[%clk 0:03:00]}  e5 {[%clk 0:02:59]} 7. Nb3 {[%clk 0:02:59]}  Be7 {[%clk 0:02:59]} 8. f3 {[%clk 0:02:59]}  O-O {[%clk 0:02:59]} 9. Qd2 {[%clk 0:02:59]}  Be6 {[%clk 0:03:00]} 10. O-O-O {[%clk 0:02:58]}  Nbd7 {[%clk 0:03:00]} 11. Qf2 {[%clk 0:02:56]}  b5 {[%clk 0:03:00]} 12. g4 {[%clk 0:02:54]}  Rb8 {[%clk 0:02:50]} 13. h4 {[%clk 0:02:48]}  Nb6 {[%clk 0:02:48]} 14. Na5 {[%clk 0:02:42]}  Qc7 {[%clk 0:02:40]} 15. g5 {[%clk 0:02:27]}  Nh5 {[%clk 0:02:29]} 16. Nb3 {[%clk 0:02:04]}  b4 {[%clk 0:02:24]} 17. Nd5 {[%clk 0:02:01]}  Nxd5 {[%clk 0:02:18]} 18. exd5 {[%clk 0:02:01]}  Bf5 {[%clk 0:02:08]} 19. Bd3 {[%clk 0:01:55]}  Bxd3 {[%clk 0:01:44]} 20. Rxd3 {[%clk 0:01:56]}  a5 {[%clk 0:01:43]} 21. f4 {[%clk 0:01:47]}  a4 {[%clk 0:01:36]} 22. Na1 {[%clk 0:01:41]}  exf4 {[%clk 0:01:24]} 23. Bxf4 {[%clk 0:01:30]}  Nxf4 {[%clk 0:01:18]} 24. Qxf4 {[%clk 0:01:30]}  Rfc8 {[%clk 0:01:07]} 25. Rf1 {[%clk 0:01:25]}  Bf8 {[%clk 0:01:07]} 26. h5 {[%clk 0:01:18]}  b3 {[%clk 0:01:02]} 27. axb3 {[%clk 0:01:15]}  axb3 {[%clk 0:01:02]} 28. Rc3 {[%clk 0:01:06]}  Qb7 {[%clk 0:00:10]} 29. Rxc8 {[%clk 0:00:58]}  Rxc8 {[%clk 0:00:07]} 30. Nxb3 {[%clk 0:00:54]}  Qxd5 {[%clk 0:00:06]} 31. Kb1 {[%clk 0:00:50]}  Rc7 {[%clk 0:00:05]} 32. g6 {[%clk 0:00:49]}  hxg6 {[%clk 0:00:02]} 33. hxg6 {[%clk 0:00:49]}  f6 {[%clk 0:00:02]} 34. Qh4 {[%clk 0:00:46]}  Be7 {[%clk 0:00:01]} 35. Qh7+ {[%clk 0:00:45]}  Kf8 {[%clk 0:00:02]} 36. Re1 {[%clk 0:00:26]}  Qg8 {[%clk 0:00:01]} 37. Nd4 {[%clk 0:00:23]} 1-0


[Site "https://www.chess.com"]

[Event "Titled Tuesday Blitz November 01 Early 2022"]
[White "Budrewicz, Krzysztof"]
[Black "Sanchez, Robert"]
[WhiteFideId "1127950"]
[BlackFideId "2034360"]
[WhiteElo "2171"]
[BlackElo "2404"]
[Result "1-0"]
[Round "10"]
[TimeControl "180+1"]
[Date "2022.11.02"]
[WhiteClock "0:02:16"]
[BlackClock "0:01:34"]

1. d4 {[%clk 0:03:00]}  Nf6 {[%clk 0:02:58]} 2. c4 {[%clk 0:03:00]}  e6 {[%clk 0:02:58]} 3. a3 {[%clk 0:03:00]}  d5 {[%clk 0:02:58]} 4. Nf3 {[%clk 0:02:59]}  Be7 {[%clk 0:02:58]} 5. Nc3 {[%clk 0:03:00]}  O-O {[%clk 0:02:58]} 6. e3 {[%clk 0:03:00]}  c5 {[%clk 0:02:57]} 7. dxc5 {[%clk 0:03:00]}  Bxc5 {[%clk 0:02:57]} 8. b4 {[%clk 0:02:56]}  Be7 {[%clk 0:02:56]} 9. cxd5 {[%clk 0:02:55]}  exd5 {[%clk 0:02:50]} 10. Bb2 {[%clk 0:02:54]}  Nc6 {[%clk 0:02:48]} 11. Be2 {[%clk 0:02:45]}  Bg4 {[%clk 0:02:48]} 12. O-O {[%clk 0:02:43]}  Rc8 {[%clk 0:02:46]} 13. Nb5 {[%clk 0:02:43]}  Ne4 {[%clk 0:02:39]} 14. Rc1 {[%clk 0:02:41]}  a6 {[%clk 0:02:26]} 15. Nbd4 {[%clk 0:02:35]}  Nxd4 {[%clk 0:02:15]} 16. Bxd4 {[%clk 0:02:34]}  a5 {[%clk 0:01:52]} 17. Rxc8 {[%clk 0:02:23]}  Qxc8 {[%clk 0:01:50]} 18. bxa5 {[%clk 0:02:23]}  Nc3 {[%clk 0:01:45]} 19. Bxc3 {[%clk 0:02:20]}  Qxc3 {[%clk 0:01:45]} 20. Qxd5 {[%clk 0:02:19]}  Qxa3 {[%clk 0:01:34]} 21. Qxb7 {[%clk 0:02:16]} 1-0


[Site "https://www.chess.com"]

[Event "Titled Tuesday Blitz November 01 Early 2022"]
[White "Buscar, Michael"]
[Black "Warchol, Kamil"]
[WhiteFideId "2603616"]
[BlackFideId "21858241"]
[WhiteElo "2010"]
[BlackElo "2001"]
[Result "0-1"]
[Round "10"]
[TimeControl "180+1"]
[Date "2022.11.02"]
[WhiteClock "0:01:14"]
[BlackClock "0:01:20"]

1. d4 {[%clk 0:02:56]}  Nf6 {[%clk 0:02:54]} 2. c4 {[%clk 0:02:55]}  e6 {[%clk 0:02:53]} 3. Nc3 {[%clk 0:02:55]}  Bb4 {[%clk 0:02:53]} 4. e3 {[%clk 0:02:54]}  b6 {[%clk 0:02:52]} 5. Bd3 {[%clk 0:02:54]}  Bb7 {[%clk 0:02:50]} 6. Ne2 {[%clk 0:02:54]}  O-O {[%clk 0:02:45]} 7. O-O {[%clk 0:02:54]}  d5 {[%clk 0:02:37]} 8. a3 {[%clk 0:02:50]}  Be7 {[%clk 0:02:34]} 9. f3 {[%clk 0:02:49]}  c5 {[%clk 0:02:33]} 10. Qe1 {[%clk 0:02:36]}  Nc6 {[%clk 0:02:23]} 11. Qg3 {[%clk 0:02:17]}  cxd4 {[%clk 0:02:17]} 12. exd4 {[%clk 0:02:16]}  dxc4 {[%clk 0:02:16]} 13. Bxc4 {[%clk 0:02:16]}  Nxd4 {[%clk 0:02:10]} 14. Bh6 {[%clk 0:02:11]}  Nf5 {[%clk 0:02:07]} 15. Qh3 {[%clk 0:01:52]}  Nxh6 {[%clk 0:02:05]} 16. Rad1 {[%clk 0:01:53]}  Qc7 {[%clk 0:02:02]} 17. Bd3 {[%clk 0:01:53]}  Nd5 {[%clk 0:01:38]} 18. Bb1 {[%clk 0:01:35]}  Ne3 {[%clk 0:01:34]} 19. Nb5 {[%clk 0:01:18]}  Qc5 {[%clk 0:01:28]} 20. Nbd4 {[%clk 0:01:14]}  Nxd1 {[%clk 0:01:25]} 21. Rxd1 {[%clk 0:01:14]}  Bf6 {[%clk 0:01:23]} 22. Rc1 {[%clk 0:01:14]}  Bxd4+ {[%clk 0:01:20]} 0-1


[Site "https://www.chess.com"]

[Event "Titled Tuesday Blitz November 01 Early 2022"]
[White "Cabezas Solano, David Alejandro"]
[Black "Gurevich, Dmitry"]
[WhiteFideId "6507522"]
[BlackFideId "2000407"]
[WhiteElo "2035"]
[BlackElo "2506"]
[Result "0-1"]
[Round "10"]
[TimeControl "180+1"]
[Date "2022.11.02"]
[WhiteClock "0:00:03"]
[BlackClock "0:00:16"]

1. e4 {[%clk 0:03:00]}  c5 {[%clk 0:02:59]} 2. Nf3 {[%clk 0:02:57]}  d6 {[%clk 0:02:59]} 3. d4 {[%clk 0:02:56]}  cxd4 {[%clk 0:02:58]} 4. Nxd4 {[%clk 0:02:57]}  Nf6 {[%clk 0:02:58]} 5. Nc3 {[%clk 0:02:57]}  Nc6 {[%clk 0:02:58]} 6. Be2 {[%clk 0:02:49]}  g6 {[%clk 0:02:56]} 7. O-O {[%clk 0:02:48]}  Nxd4 {[%clk 0:02:56]} 8. Qxd4 {[%clk 0:02:47]}  Bg7 {[%clk 0:02:57]} 9. Be3 {[%clk 0:02:46]}  O-O {[%clk 0:02:55]} 10. Qd2 {[%clk 0:02:42]}  Be6 {[%clk 0:02:55]} 11. h3 {[%clk 0:02:39]}  a6 {[%clk 0:02:54]} 12. a4 {[%clk 0:02:39]}  Rc8 {[%clk 0:02:53]} 13. a5 {[%clk 0:02:24]}  Qc7 {[%clk 0:02:34]} 14. Bb6 {[%clk 0:02:17]}  Qc6 {[%clk 0:02:31]} 15. Bf3 {[%clk 0:02:14]}  Qd7 {[%clk 0:02:29]} 16. Rad1 {[%clk 0:02:02]}  Ne8 {[%clk 0:02:26]} 17. Rfe1 {[%clk 0:01:55]}  Bc4 {[%clk 0:02:25]} 18. Qc1 {[%clk 0:01:29]}  Bxc3 {[%clk 0:02:17]} 19. bxc3 {[%clk 0:01:28]}  Qb5 {[%clk 0:01:39]} 20. e5 {[%clk 0:01:13]}  d5 {[%clk 0:01:36]} 21. e6 {[%clk 0:01:04]}  f6 {[%clk 0:01:33]} 22. h4 {[%clk 0:01:00]}  Ng7 {[%clk 0:01:31]} 23. h5 {[%clk 0:00:57]}  gxh5 {[%clk 0:01:20]} 24. Qh6 {[%clk 0:00:55]}  Rc6 {[%clk 0:01:17]} 25. Bxh5 {[%clk 0:00:49]}  Rxe6 {[%clk 0:01:08]} 26. Rxe6 {[%clk 0:00:43]}  Nxe6 {[%clk 0:01:07]} 27. Re1 {[%clk 0:00:42]}  d4 {[%clk 0:01:03]} 28. cxd4 {[%clk 0:00:38]}  Qf5 {[%clk 0:00:57]} 29. Bf3 {[%clk 0:00:28]}  Bd5 {[%clk 0:00:55]} 30. Bxd5 {[%clk 0:00:20]}  Qxd5 {[%clk 0:00:55]} 31. c3 {[%clk 0:00:20]}  Rf7 {[%clk 0:00:47]} 32. Qh3 {[%clk 0:00:18]}  Nf4 {[%clk 0:00:41]} 33. Qc8+ {[%clk 0:00:17]}  Kg7 {[%clk 0:00:35]} 34. Qg4+ {[%clk 0:00:16]}  Qg5 {[%clk 0:00:30]} 35. Qxg5+ {[%clk 0:00:14]}  fxg5 {[%clk 0:00:30]} 36. Bc5 {[%clk 0:00:12]}  Kf6 {[%clk 0:00:26]} 37. Rb1 {[%clk 0:00:11]}  e6 {[%clk 0:00:26]} 38. Kf1 {[%clk 0:00:10]}  Rd7 {[%clk 0:00:21]} 39. g3 {[%clk 0:00:06]}  Nd5 {[%clk 0:00:18]} 40. c4 {[%clk 0:00:04]}  Nc3 {[%clk 0:00:17]} 41. Rb3 {[%clk 0:00:02]}  Ne4 {[%clk 0:00:16]} 42. Bb6 {[%clk 0:00:03]}  Nd2+ {[%clk 0:00:16]} 0-1


[Site "https://www.chess.com"]